bitfinex/quotes_SOLUSD_20250714
["timestamp","ask_amount","ask_price","bid_price","bid_amount"]
[1752485500235,0.2,167.32,167.31,32.17]
[1752485500827,0.2,167.32,167.31,31.46]
[1752485501144,0.2,167.32,167.31,121.51]
[1752485502342,0.2,167.32,167.31,120.8]
[1752485503536,6.71657183,167.32,167.31,120.8]
[1752485503741,0.74,167.32,167.31,120.8]
[1752485504736,0.74,167.32,167.31,31.46]
[1752485504737,0.2,167.32,167.31,31.46]
[1752485506934,0.2,167.32,167.31,32.17]
[1752485507316,0.2,167.32,167.31,31.46]
[1752485510542,0.2,167.32,167.31,32.17]
[1752485511945,0.2,167.32,167.31,31.46]
[1752485512245,0.2,167.32,167.31,32.17]
[1752485512738,0.2,167.32,167.31,31.46]
[1752485513335,0.2,167.32,167.31,32.17]
[1752485514254,0.2,167.32,167.31,43.30431351]
[1752485514538,0.2,167.32,167.31,132.64431351]
[1752485516226,0.2,167.32,167.31,127.48692905]
[1752485516529,0.2,167.32,167.31,132.64431351]
[1752485516726,0.2,167.32,167.31,127.48692905]
[1752485516932,0.2,167.32,167.31,121.51]
[1752485518218,0.2,167.32,167.31,120.8]
[1752485519222,0.2,167.32,167.31,121.51]
[1752485519747,0.2,167.32,167.31,132.64431351]
[1752485521743,0.2,167.32,167.31,138.98721351]
[1752485522046,0.2,167.32,167.31,164.98721351]
[1752485522530,0.2,167.32,167.31,138.98721351]
[1752485525424,0.06,167.35,167.31,138.98721351]
[1752485525425,0.06,167.35,167.33,88.94]
[1752485525635,0.06,167.35,167.34,55.98458446]
[1752485525837,0.06,167.35,167.34,56.69458446]
[1752485526148,0.06,167.35,167.34,145.63458446]
[1752485526756,0.06,167.35,167.34,151.61044199]
[1752485526931,0.06,167.35,167.34,154.60494715]
[1752485528448,1e-08,167.35,167.34,176.54701558]
[1752485529531,1e-08,167.35,167.34,182.53101558]
[1752485529731,1e-08,167.35,167.34,176.54701558]
[1752485530759,1e-08,167.35,167.34,182.53101558]
[1752485530941,1e-08,167.35,167.34,176.54701558]
[1752485531441,0.06,167.39,167.38,100.07181389]
[1752485531643,0.06,167.39,167.38,131.23181389]
[1752485531949,0.06,167.39,167.38,131.94181389]
[1752485534343,0.06,167.39,167.38,157.94181389]
[1752485535236,1e-08,167.39,167.38,131.94181389]
[1752485535438,1e-08,167.39,167.38,138.51651389]
[1752485535754,0.2,167.45,167.41,26.0]
[1752485535935,0.2,167.45,167.44,5.15738446]
[1752485536143,0.2,167.45,167.44,88.93999999]
[1752485536361,6.17193191,167.45,167.44,120.07999999]
[1752485536856,6.71193191,167.45,167.44,120.07999999]
[1752485539657,0.74,167.45,167.44,120.07999999]
[1752485539863,0.2,167.45,167.44,120.07999999]
[1752485540360,0.2,167.45,167.44,126.75228857]
[1752485540539,0.2,167.45,167.44,120.77999999]
[1752485540745,0.2,167.45,167.44,126.75228857]
[1752485541362,0.2,167.45,167.44,131.90967303]
[1752485546656,0.2,167.45,167.44,126.75228857]
[1752485546862,0.2,167.45,167.44,131.90967303]
[1752485549262,0.2,167.45,167.44,126.67228857]
[1752485549452,0.2,167.45,167.44,131.82967303]
[1752485552565,0.2,167.45,167.44,26.0]
[1752485552762,0.2,167.45,167.41,88.93999999]
[1752485552763,0.74,167.45,167.41,88.93999999]
[1752485552940,0.74,167.45,167.42,31.02]
[1752485553340,0.54,167.44,167.43,31.02]
[1752485554266,0.2,167.45,167.43,31.02]
[1752485554441,0.54,167.44,167.43,31.02]
[1752485554645,0.2,167.45,167.43,31.02]
[1752485555537,0.2,167.45,167.44,0.7]
[1752485555744,0.2,167.45,167.44,5.85738446]
[1752485556443,0.2,167.45,167.44,0.7]
[1752485556854,0.2,167.45,167.44,6.67228858]
[1752485559567,0.2,167.45,167.44,5.97228858]
[1752485561465,0.2,167.45,167.44,6.67228858]
[1752485562467,0.2,167.45,167.43,125.93253038]
[1752485562971,0.2,167.45,167.43,119.95999999]
[1752485563165,0.2,167.45,167.43,88.93999999]
[1752485563466,0.2,167.45,167.44,30.96]
[1752485565251,0.74,167.45,167.44,30.96]
[1752485565451,0.2,167.45,167.44,30.96]
[1752485565861,0.2,167.45,167.44,36.93228858]
[1752485566150,0.2,167.45,167.44,30.96]
[1752485567172,0.2,167.45,167.44,36.93228858]
[1752485568057,0.2,167.45,167.44,37.65228858]
[1752485569248,0.2,167.45,167.44,30.96]
[1752485569662,0.2,167.45,167.44,36.93228858]
[1752485569947,0.2,167.45,167.44,37.65228858]
[1752485570373,0.2,167.45,167.44,30.96]
[1752485571773,0.74,167.45,167.43,89.6]
[1752485571974,6.71193191,167.45,167.44,30.94]
[1752485572152,6.17193191,167.45,167.44,30.94]
[1752485572353,0.74,167.45,167.43,89.6]
[1752485572546,0.2,167.45,167.44,30.92]
[1752485573477,0.2,167.45,167.44,36.89228858]
[1752485574053,0.2,167.45,167.44,37.61228858]
[1752485574659,0.2,167.45,167.44,31.64]
[1752485574977,0.2,167.45,167.44,37.61228858]
[1752485575858,0.2,167.45,167.44,42.76967304]
[1752485576058,0.2,167.45,167.42,0.72]
[1752485576258,0.74,167.45,167.43,30.92]
[1752485576566,0.54,167.44,167.43,30.92]
[1752485576763,6.51228858,167.44,167.4,0.03]
[1752485576951,17.32468397,167.43,167.41,30.92]
[1752485577154,17.32468397,167.42,167.41,30.92]
[1752485582563,23.297686,167.42,167.41,30.92]
[1752485584882,17.32468397,167.42,167.41,30.92]
[1752485586283,23.297686,167.42,167.41,30.92]
[1752485586978,17.32468397,167.42,167.41,30.92]
[1752485587663,16.78468397,167.42,167.41,30.92]
[1752485588362,17.32468397,167.42,167.41,30.92]
[1752485590075,23.297686,167.42,167.41,30.92]
[1752485591566,17.32468397,167.42,167.41,30.92]
[1752485592183,0.2,167.45,167.41,37.61326779]
[1752485592489,0.2,167.45,167.42,0.72]
[1752485592694,0.2,167.45,167.43,30.88]
[1752485592873,0.2,167.45,167.43,31.53]
[1752485593077,0.2,167.45,167.44,0.65]
[1752485593271,0.2,167.45,167.44,5.80738446]
[1752485593473,0.2,167.45,167.44,106.5370575]
[1752485593670,0.06,167.47,167.44,122.0650078]
[1752485593870,0.06,167.47,167.46,5.15738446]
[1752485594080,0.06,167.47,167.46,94.75738446]
[1752485594283,0.2,167.49,167.46,95.40738446]
[1752485594480,0.2,167.49,167.48,5.15738446]
[1752485594979,0.2,167.49,167.48,5.80738446]
[1752485595588,0.2,167.49,167.48,11.77824665]
[1752485597492,0.2,167.49,167.48,101.37824665]
[1752485602493,0.2,167.5,167.49,89.4]
[1752485602697,0.2,167.5,167.49,126.06738446]
[1752485604197,0.2,167.5,167.49,132.03789016]
[1752485606172,0.2,167.5,167.49,96.0205057]
[1752485606476,0.2,167.5,167.49,126.8805057]
[1752485606804,0.2,167.5,167.49,132.03789016]
[1752485607093,0.2,167.5,167.49,158.03789016]
[1752485607298,0.2,167.5,167.49,321.02257413]
[1752485607627,0.2,167.5,167.49,304.23789016]
[1752485607975,0.2,167.5,167.49,268.2205057]
[1752485608277,0.2,167.5,167.49,304.23789016]
[1752485608676,0.2,167.5,167.49,158.03789016]
[1752485610912,0.2,167.5,167.49,152.8805057]
[1752485611211,0.2,167.5,167.49,158.03789016]
[1752485613789,0.2,167.5,167.49,146.91]
[1752485613996,0.2,167.5,167.49,152.06738446]
[1752485614204,6.67898453,167.54,167.5,89.2]
[1752485614497,0.71,167.54,167.51,30.84]
[1752485615286,6.67877369,167.54,167.51,30.84]
[1752485615483,0.71,167.54,167.51,30.84]
[1752485616004,0.71,167.54,167.5,89.2]
[1752485616207,0.71,167.54,167.51,30.84]
[1752485617003,0.71,167.53,167.51,30.84]
[1752485619209,5.96847695,167.55,167.51,30.84]
[1752485619420,6.67847695,167.55,167.51,30.84]
[1752485620206,0.71,167.55,167.51,120.04]
[1752485620698,0.71,167.55,167.51,120.69]
[1752485621612,0.71,167.55,167.51,120.04]
[1752485621992,16.84468397,167.57,167.51,120.69]
[1752485623115,5.96801145,167.56,167.51,120.69]
[1752485623816,5.96801145,167.56,167.52,0.66]
[1752485624018,6.05801145,167.56,167.53,30.84]
[1752485628023,16.87468397,167.55,167.53,30.84]
[1752485628220,0.09,167.54,167.45,0.66]
[1752485628407,0.09,167.54,167.48,30.84]
[1752485629002,0.09,167.54,167.43,0.66]
[1752485629206,16.78468397,167.52,167.41,5.66]
[1752485629410,0.09,167.51,167.42,30.84]
[1752485630139,22.75483322,167.5,167.49,0.03]
[1752485630313,16.78468397,167.5,167.49,0.03]
[1752485630625,16.78468397,167.52,167.49,0.03]
[1752485631122,16.87468397,167.52,167.49,0.03]
[1752485632310,16.78468397,167.52,167.49,0.03]
[1752485633717,16.78468397,167.52,167.49,0.69]
[1752485633915,16.78468397,167.52,167.49,0.03]
[1752485634717,1.6148,167.53,167.49,0.69]
[1752485634917,0.15,167.56,167.5,0.66]
[1752485635218,0.15,167.56,167.51,30.86]
[1752485635423,0.09,167.55,167.51,30.86]
[1752485636017,0.09,167.54,167.51,30.86]
[1752485638149,16.87468397,167.54,167.51,30.86]
[1752485638437,22.84354747,167.54,167.51,30.86]
[1752485639321,16.78468397,167.54,167.51,30.86]
[1752485640337,5.96883848,167.54,167.51,30.86]
[1752485641540,0.09,167.55,167.51,30.86]
[1752485641723,0.09,167.54,167.51,30.86]
[1752485643538,6.11801145,167.56,167.51,30.86]
[1752485643843,0.09,167.55,167.51,30.86]
[1752485644324,0.09,167.55,167.51,31.52]
[1752485644942,5.96872388,167.54,167.51,31.52]
[1752485645440,5.96872388,167.54,167.51,30.86]
[1752485645640,5.96872388,167.54,167.51,31.52]
[1752485646745,6.11801145,167.56,167.51,31.52]
[1752485647444,0.09,167.55,167.51,30.86]
[1752485648846,5.96872388,167.54,167.51,30.86]
[1752485649045,5.96872388,167.54,167.51,31.52]
[1752485649425,16.78468397,167.53,167.51,31.52]
[1752485651628,22.75379107,167.53,167.51,31.52]
[1752485654152,22.75379107,167.53,167.51,30.86]
[1752485654929,22.75379107,167.53,167.51,31.58]
[1752485655129,22.75379107,167.53,167.52,0.72]
[1752485655130,16.78468397,167.53,167.52,0.72]
[1752485655431,0.06,167.56,167.52,0.72]
[1752485655753,0.06,167.56,167.53,30.84]
[1752485656050,0.06,167.56,167.54,0.72]
[1752485656224,13.54729979,167.59,167.54,0.72]
[1752485656425,5.9672992,167.58,167.54,0.72]
[1752485657060,0.09,167.58,167.54,0.72]
[1752485657233,30.55353092,167.62,167.54,0.72]
[1752485658130,16.78468397,167.58,167.54,0.72]
[1752485658637,16.78468397,167.58,167.55,0.72]
[1752485659142,5.9676553,167.57,167.55,0.72]
[1752485660351,5.9676553,167.57,167.53,31.56]
[1752485660647,14.91821582,167.59,167.54,0.72]
[1752485661637,14.91821582,167.59,167.55,0.72]
[1752485662757,14.91821582,167.59,167.54,0.72]
[1752485664859,16.78468397,167.58,167.51,89.92]
[1752485665065,16.78468397,167.58,167.51,120.04]
[1752485666542,16.78468397,167.56,167.51,120.04]
[1752485666857,16.78468397,167.56,167.51,120.76]
[1752485667448,16.78468397,167.56,167.51,31.56]
[1752485668777,5.96836765,167.55,167.51,31.56]
[1752485669974,20.88928677,167.55,167.51,31.56]
[1752485670872,20.88928677,167.55,167.51,30.84]
[1752485671073,20.88928677,167.55,167.52,0.72]
[1752485672572,20.88928677,167.55,167.51,31.56]
[1752485675280,20.88928677,167.55,167.5,30.84]
[1752485675468,16.78468397,167.54,167.49,0.03]
[1752485676066,16.78468397,167.54,167.46,30.84]
[1752485676372,47.62468397,167.54,167.45,0.03]
[1752485676958,16.78468397,167.52,167.45,0.03]
[1752485678856,16.78468397,167.52,167.46,0.72]
[1752485679056,16.78468397,167.5,167.46,0.72]
[1752485679468,16.78468397,167.5,167.47,0.72]
[1752485681180,30.84,167.54,167.48,0.72]
[1752485681488,16.78468397,167.53,167.48,0.72]
[1752485681675,37.67646454,167.53,167.48,0.72]
[1752485683762,37.67646454,167.53,167.46,0.66]
[1752485684401,37.67646454,167.53,167.46,31.5]
[1752485684561,20.89178057,167.53,167.47,0.66]
[1752485685209,16.78468397,167.52,167.47,0.66]
[1752485685858,5.96979284,167.51,167.47,0.66]
[1752485686181,20.89427496,167.51,167.47,0.66]
[1752485687492,20.89053359,167.54,167.47,0.66]
[1752485690096,20.89053359,167.54,167.47,2.3044]
[1752485690097,16.78468397,167.53,167.47,2.3044]
[1752485690300,16.78468397,167.53,167.48,0.66]
[1752485690480,16.78468397,167.53,167.49,0.66]
[1752485690883,16.78468397,167.53,167.5,0.66]
[1752485692399,5.96943648,167.52,167.48,0.66]
[1752485693397,5.96943648,167.52,167.47,32.4844]
[1752485693398,20.89302769,167.52,167.47,32.4844]
[1752485693702,20.89302769,167.52,167.47,33.1444]
[1752485694385,14.92359121,167.52,167.47,33.1444]
[1752485694788,31.70827518,167.52,167.48,0.66]
[1752485695184,31.70827518,167.52,167.47,32.4844]
[1752485695388,16.78468397,167.52,167.49,0.66]
[1752485695701,16.78468397,167.52,167.5,0.66]
[1752485696003,16.78468397,167.52,167.48,0.66]
[1752485696206,16.78468397,167.52,167.49,0.66]
[1752485697214,5.96979284,167.51,167.49,0.66]
[1752485697882,60.68055986,167.56,167.5,0.66]
[1752485697883,16.78468397,167.54,167.5,0.66]
[1752485698573,22.75305162,167.55,167.5,0.66]
[1752485698777,5.96908016,167.53,167.5,0.66]
[1752485699189,16.78468397,167.58,167.5,0.66]
[1752485699805,16.78468397,167.58,167.51,6.3285]
[1752485700102,5.9672992,167.58,167.52,37.44934537]
[1752485700311,5.9672992,167.58,167.53,2.2135]
[1752485700511,5.9672992,167.58,167.54,0.66]
[1752485700984,5.9672992,167.58,167.55,0.66]
[1752485702017,16.84468397,167.59,167.55,0.66]
[1752485702690,16.84468397,167.59,167.53,1.5535]
[1752485702903,16.84468397,167.59,167.56,0.66]
[1752485703228,16.84468397,167.59,167.54,31.48]
[1752485703507,16.84468397,167.59,167.55,0.66]
[1752485703713,16.84468397,167.59,167.56,0.66]
[1752485704023,16.84468397,167.59,167.54,30.82]
[1752485704024,0.06,167.59,167.57,0.66]
[1752485704723,0.06,167.59,167.55,0.66]
[1752485704924,0.06,167.59,167.54,30.82]
[1752485705243,0.06,167.59,167.56,0.66]
[1752485706612,6.02694313,167.59,167.57,0.66]
[1752485706816,6.02694313,167.59,167.55,0.66]
[1752485707006,6.02694313,167.59,167.56,0.66]
[1752485707511,6.02694313,167.59,167.54,30.82]
[1752485707701,6.02694313,167.59,167.57,0.66]
[1752485709912,6.02694313,167.59,167.58,0.66]
[1752485710429,6.02694313,167.59,167.57,0.66]
[1752485711916,6.02694313,167.59,167.58,0.66]
[1752485712226,6.02694313,167.59,167.55,0.66]
[1752485712408,0.06,167.59,167.56,0.66]
[1752485712609,0.06,167.59,167.54,30.82]
[1752485712817,0.06,167.59,167.57,0.66]
[1752485713510,0.06,167.59,167.56,0.68]
[1752485714049,0.06,167.59,167.54,0.68]
[1752485714219,0.06,167.59,167.52,0.68]
[1752485714417,16.84468397,167.59,167.52,31.48]
[1752485714613,16.84468397,167.59,167.52,30.8]
[1752485715923,23.00991472,167.59,167.5,0.68]
[1752485716234,23.00991472,167.59,167.48,0.68]
[1752485716235,16.78468397,167.57,167.48,0.68]
[1752485716448,20.88804009,167.56,167.48,0.68]
[1752485717226,20.88804009,167.56,167.49,0.03]
[1752485717618,20.88804009,167.56,167.49,0.71]
[1752485718529,16.78468397,167.54,167.42,0.04070762]
[1752485718732,16.78468397,167.54,167.43,5.15738446]
[1752485718925,0.68,167.54,167.42,5.15738446]
[1752485719628,0.68,167.54,167.43,5.15738446]
[1752485719935,0.68,167.54,167.44,30.8]
[1752485720633,5.96908016,167.53,167.45,6.65193191]
[1752485720819,5.96908016,167.53,167.46,0.68]
[1752485721227,20.89178057,167.53,167.46,0.68]
[1752485721424,17.46468397,167.52,167.46,0.68]
[1752485722234,0.68,167.51,167.46,0.68]
[1752485722552,5.9705057,167.49,167.46,0.68]
[1752485722843,6.6505057,167.49,167.45,30.8]
[1752485723036,6.6505057,167.49,167.45,31.48]
[1752485723717,5.9705057,167.49,167.45,30.8]
[1752485724019,5.9705057,167.49,167.46,0.68]
[1752485724952,5.9705057,167.49,167.45,30.8]
[1752485725129,5.9705057,167.49,167.45,31.48]
[1752485725329,6.6505057,167.49,167.45,31.48]
[1752485725815,16.78468397,167.47,167.45,30.8]
[1752485726020,17.46468397,167.47,167.42,31.48]
[1752485726219,20.89676995,167.49,167.43,0.68]
[1752485726220,16.78468397,167.48,167.43,0.68]
[1752485727422,5.97121872,167.47,167.43,0.68]
[1752485730052,16.78468397,167.45,167.41,5.68]
[1752485730339,16.78468397,167.45,167.42,0.68]
[1752485730548,16.78468397,167.46,167.41,5.0]
[1752485730733,0.68,167.45,167.41,5.68]
[1752485731419,0.68,167.44,167.41,5.0]
[1752485731840,5.97264528,167.43,167.41,5.0]
[1752485734335,5.97264528,167.43,167.41,5.68]
[1752485735444,16.78468397,167.44,167.41,5.68]
[1752485735648,5.97193191,167.45,167.42,0.68]
[1752485735832,5.97167909,167.46,167.42,0.68]
[1752485738945,5.97121872,167.47,167.42,0.68]
[1752485739746,0.06,167.44,167.42,0.68]
[1752485740859,0.06,167.44,167.41,5.71]
[1752485741363,0.06,167.44,167.41,36.51]
[1752485741861,0.06,167.44,167.41,35.83]
[1752485742163,0.06,167.44,167.41,36.51]
[1752485742865,6.03228858,167.44,167.41,36.51]
[1752485744054,6.03228858,167.44,167.42,0.66]
[1752485744556,6.03228858,167.44,167.41,35.83]
[1752485744763,6.03228858,167.44,167.41,36.49]
[1752485745171,6.03228858,167.44,167.42,0.66]
[1752485748166,6.03228858,167.44,167.41,35.83]
[1752485748355,0.06,167.44,167.43,0.66]
[1752485755774,0.06,167.44,167.43,6.63264528]
[1752485755983,0.06,167.44,167.43,0.66]
[1752485756970,0.06,167.44,167.43,6.63264528]
[1752485758567,0.06,167.44,167.43,11.79002974]
[1752485758963,0.06,167.44,167.43,18.22242974]
[1752485760584,1e-08,167.44,167.43,66.16449817]
[1752485760957,1e-08,167.44,167.43,72.13049817]
[1752485761368,1e-08,167.44,167.43,61.00711371]
[1752485762487,1e-08,167.44,167.43,91.78711371]
[1752485763185,1e-08,167.44,167.43,75.00242974]
[1752485764469,1e-08,167.44,167.43,69.84504528]
[1752485764705,1e-08,167.44,167.43,75.00242974]
[1752485765500,1e-08,167.44,167.43,69.84504528]
[1752485765671,1e-08,167.44,167.43,75.00242974]
[1752485766078,1e-08,167.44,167.43,68.57002974]
[1752485766382,1e-08,167.44,167.43,31.44]
[1752485769063,1e-08,167.44,167.43,37.41264528]
[1752485770196,1e-08,167.44,167.43,31.44]
[1752485782484,1e-08,167.44,167.43,30.78]
[1752485782886,0.68000001,167.44,167.43,30.78]
[1752485783399,6.65228859,167.44,167.43,30.78]
[1752485784079,13.05378859,167.44,167.42,0.03]
[1752485784284,0.68,167.43,167.42,0.03]
[1752485785689,6.65264528,167.43,167.42,0.03]
[1752485788700,24.94262925,167.43,167.42,0.03]
[1752485790097,22.75732925,167.43,167.42,0.03]
[1752485790686,23.43732925,167.43,167.42,0.03]
[1752485791379,5.97264528,167.43,167.42,0.03]
[1752485793800,1e-08,167.44,167.42,31.45]
[1752485794777,1e-08,167.44,167.42,30.79]
[1752485796903,1e-08,167.44,167.42,31.45]
[1752485799709,1e-08,167.44,167.42,30.79]
[1752485801122,1e-08,167.44,167.42,31.45]
[1752485801621,1e-08,167.44,167.42,30.79]
[1752485803015,1e-08,167.44,167.42,31.46]
[1752485806324,1e-08,167.44,167.43,0.67]
[1752485806495,1e-08,167.44,167.43,11.80002974]
[1752485806823,1e-08,167.44,167.43,5.82738446]
[1752485807001,1e-08,167.44,167.43,11.80002974]
[1752485809407,1e-08,167.44,167.43,101.40002974]
[1752485809609,1e-08,167.44,167.43,102.96042974]
[1752485821034,1e-08,167.44,167.43,128.96042974]
[1752485821633,1e-08,167.44,167.43,101.40002974]
[1752485821844,1e-08,167.44,167.43,126.96264528]
[1752485822831,0.68000001,167.44,167.43,89.6]
[1752485823036,0.68000001,167.44,167.42,30.75]
[1752485823255,0.68000001,167.44,167.42,0.03]
[1752485823405,18.36938397,167.43,167.42,0.03]
[1752485823832,19.04938397,167.43,167.42,0.03]
[1752485824034,2.2647,167.43,167.42,0.03]
[1752485824835,8.23734528,167.43,167.42,0.03]
[1752485832923,8.23734528,167.43,167.41,5.03]
[1752485833129,17.46468397,167.42,167.41,5.03]
[1752485834530,23.437686,167.42,167.41,5.03]
[1752485835755,22.757686,167.42,167.41,5.03]
[1752485835921,1e-08,167.44,167.41,5.68]
[1752485836116,5.97238931,167.44,167.41,5.68]
[1752485836345,5.97238931,167.44,167.42,30.72]
[1752485837739,6.65238931,167.44,167.42,30.72]
[1752485838845,5.97238931,167.44,167.42,30.72]
[1752485844254,5.97238931,167.44,167.42,31.37]
[1752485845433,1e-08,167.44,167.42,31.37]
[1752485848058,1e-08,167.44,167.42,30.72]
[1752485848553,0.68,167.43,167.41,5.03]
[1752485848759,1e-08,167.44,167.41,5.03]
[1752485848939,0.68,167.42,167.41,5.03]
[1752485849139,6.65300203,167.42,167.41,5.03]
[1752485851030,5.97300203,167.42,167.41,5.03]
[1752485851231,0.68,167.42,167.41,5.03]
[1752485851862,17.46468397,167.42,167.41,5.03]
[1752485853240,23.437686,167.42,167.41,5.03]
[1752485856483,22.757686,167.42,167.41,5.03]
[1752485856847,23.437686,167.42,167.41,5.03]
[1752485857349,23.437686,167.42,167.4,0.03]
[1752485857350,16.78468397,167.41,167.4,0.03]
[1752485857549,17.46468397,167.41,167.4,1e-08]
[1752485858877,23.43804278,167.41,167.4,1e-08]
[1752485861956,22.75804278,167.41,167.4,1e-08]
[1752485862352,23.43804278,167.41,167.4,1e-08]
[1752485864364,22.75804278,167.41,167.4,1e-08]
[1752485864566,22.75804278,167.41,167.35,0.03]
[1752485864567,68.22823391,167.41,167.35,0.03]
[1752485864756,16.78468397,167.39,167.35,0.03]
[1752485865152,0.67,167.38,167.35,0.03]
[1752485865558,16.78468397,167.36,167.35,0.03]
[1752485865876,22.75982737,167.36,167.35,0.03]
[1752485869580,23.42982737,167.36,167.35,0.03]
[1752485871760,22.75982737,167.36,167.35,0.03]
[1752485881794,22.75982737,167.36,167.35,0.72]
[1752485882296,22.75982737,167.36,167.35,0.03]
[1752485882784,23.42982737,167.36,167.35,0.03]
[1752485883590,22.75982737,167.36,167.35,0.03]
[1752485885197,22.75982737,167.36,167.35,0.72]
[1752485886075,5.9751434,167.36,167.35,0.72]
[1752485886591,20.91058753,167.38,167.35,0.72]
[1752485886769,5.97442944,167.38,167.35,0.72]
[1752485887792,16.78468397,167.37,167.35,0.03]
[1752485888103,17.45468397,167.37,167.35,0.03]
[1752485888393,16.78468397,167.37,167.35,0.03]
[1752485888602,22.75982737,167.36,167.35,0.03]
[1752485889513,23.42982737,167.36,167.35,0.03]
[1752485891729,16.78468397,167.35,167.33,0.03]
[1752485891897,17.45468397,167.35,167.33,0.03]
[1752485892998,22.7605415,167.34,167.33,0.03]
[1752485893709,22.7605415,167.34,167.33,0.69]
[1752485894311,22.7605415,167.34,167.33,0.03]
[1752485894909,22.7605415,167.34,167.33,0.69]
[1752485895307,5.97585753,167.34,167.33,0.69]
[1752485896829,0.06,167.36,167.33,133.64059912]
[1752485897122,0.06,167.43,167.35,10.31476892]
[1752485897303,0.06,167.43,167.41,5.15738446]
[1752485897619,20.96427723,167.43,167.39,30.66]
[1752485897997,6.03266402,167.43,167.4,5.81738446]
[1752485898224,6.03266402,167.43,167.41,0.66]
[1752485898814,0.06,167.43,167.41,0.66]
[1752485900419,0.06,167.43,167.42,30.66]
[1752485901524,0.06,167.43,167.42,31.32]
[1752485901921,0.06,167.43,167.42,30.66]
[1752485902123,0.06,167.43,167.42,31.32]
[1752485909323,0.06,167.43,167.4,0.66]
[1752485909637,0.06,167.43,167.4,30.64]
[1752485909833,0.06,167.43,167.41,0.66]
[1752485910717,0.06,167.43,167.41,5.81738446]
[1752485911127,0.06,167.43,167.42,0.66]
[1752485912319,0.06,167.43,167.42,5.81738446]
[1752485913423,0.06,167.43,167.42,0.66]
[1752485913746,0.06,167.43,167.42,5.81738446]
[1752485914741,0.06,167.43,167.42,0.66]
[1752485915124,0.06,167.43,167.42,5.81738446]
[1752485915643,0.06,167.43,167.42,36.45738446]
[1752485915842,0.06,167.43,167.42,31.3]
[1752485916047,0.06,167.43,167.42,30.64]
[1752485917044,0.06,167.43,167.42,31.3]
[1752485919424,0.06,167.43,167.42,36.45738446]
[1752485921842,0.06,167.43,167.42,127.71678446]
[1752485922046,0.06,167.43,167.42,97.07678446]
[1752485922235,0.06,167.43,167.42,127.69678446]
[1752485923845,0.06,167.43,167.42,133.66978649]
[1752485924747,0.06,167.43,167.42,159.66978649]
[1752485925044,0.06,167.5,167.44,89.53999999]
[1752485925241,0.06,167.5,167.49,5.15738446]
[1752485925447,0.06,167.5,167.49,125.31738445]
[1752485925634,0.06,167.5,167.49,125.97738445]
[1752485926931,0.06,167.5,167.49,133.51529015]
[1752485927335,0.06,167.5,167.49,127.54478445]
[1752485927843,0.06,167.5,167.49,133.51529015]
[1752485928040,0.06,167.5,167.49,127.54478445]
[1752485928243,0.06,167.5,167.49,133.51529015]
[1752485928442,0.06,167.5,167.49,127.54478445]
[1752485928645,0.06,167.5,167.49,133.51529015]
[1752485929129,0.06,167.5,167.49,127.54478445]
[1752485929556,0.06,167.5,167.49,140.05059015]